{"text_format":"1","workbook":"xlsx","n_sheets":10,"sheets":["Skema 1","Skema 2","Skema 3","Skema 4","Skema 5","Skema 6","Skema 7","Rapport","Rapport SGH","Afstemning af ikke fordelte"],"not_rendered":{"charts":0,"images":0,"macros":1,"external_links":0,"defined_names":21,"comments":0,"pivot_tables":0},"unopened":[],"bounds":{"document_bytes":16777216,"sheet_cells":100000,"rows_first":2000,"rows_last":500,"rows_between":2000,"halvings":0,"cell_chars":16384,"cell_head_chars":4096},"cells_cut":0,"cells_raw":0,"read":"whole","date_system":"1900"}

{"sheet":"Skema 1","index":0,"n_rows":35,"n_cols":9,"rows_kept":35,"cut":false,"hidden":false,"merged":[[1,1,2,8]]}
["Region Nordjylland, psykiatriske sygehuse."]
[null,"Skema 1: Udgifter og indtægter på sygehusene/enhederne, eksklusiv omkostningssted 0001, Fælleskonto. (1.000 kr.)"]
[]
[]
["Sygehus",null,2023,2022,2021,2020,"Δ2022-2023","% afvigelse","Begrundelse"]
["Region Nord, Voksen psykiatrien"]
["Region Nord, Voksen psykiatrien","Hovedart 1: Lønninger",622942.48600000003,599781.522,584483.21200000006,569466.68400000001,{"$f":"IF(ISERROR(C7- D7)=TRUE,\"\",C7 - D7)","v":23160.964000000036},{"$f":"IF(ISERROR((((C7- D7)/D7)*100)=TRUE),\"\",IF((((C7- D7)/D7)*100)<-7,FIXED(((C7- D7)/D7)*100, 1,TRUE) &\"%\" & \"▼\",IF((((C7- D7)/D7)*100)>7,FIXED(((C7- D7)/D7)*100, 1,TRUE) &\"%\" &\"▲\",FIXED(((C7- D7)/D7)*100, 1,TRUE)&\"%\")))","v":"3,9%"}]
["Region Nord, Voksen psykiatrien","Hovedart 2: Varekøb",16950.826000000001,19597.606,19371.080999999998,33066.898999999998,-2646.7799999999988,"-13,5%▼"]
["Region Nord, Voksen psykiatrien","Hovedart 4: Tjenesteydelser m.v. ",106591.974,100558.09600000001,91013.736999999994,100647.48,6033.877999999997,"6,0%"]
["Region Nord, Voksen psykiatrien","Hovedart 5: Tilskud og overførsler",null,null,null,null,0,""]
["Region Nord, Voksen psykiatrien","Hovedart 6: Finansudgifter",null,null,null,null,0,""]
["Region Nord, Voksen psykiatrien","Hovedart 7: Indtægter",-27602.365000000002,-26626.708999999999,-28254.274000000001,-33351.563999999998,-975.65600000000268,"3,7%"]
["Region Nord, Voksen psykiatrien","Hovedart 8: Finansindtægter",null,null,null,null,0,""]
["Region Nord, Voksen psykiatrien","Hovedart 9: Interne udgifter og indtægter",11596.177,11543.29,11654.89,6956.1710000000003,52.886999999998807,"0,5%"]
["Region Nord, Voksen psykiatrien","I alt",{"$f":"SUMIFS((C7:C14),(A7:A14),A15)","v":730479.09800000011},{"$f":"SUMIFS((D7:D14),(A7:A14),A15)","v":704853.80500000005},{"$f":"SUMIFS((E7:E14),(A7:A14),A15)","v":678268.64600000007},{"$f":"SUMIFS((F7:F14),(A7:A14),A15)","v":676785.66999999993},25625.293000000063,"3,6%"]
["Region Nord,Børn-unge psykiatrien",null,null,null,null,null,0,""]
["Region Nord,Børn-unge psykiatrien","Hovedart 1: Lønninger",105439.011,99577.861999999994,88991.982999999993,83875.979000000007,5861.1490000000049,"5,9%"]
["Region Nord,Børn-unge psykiatrien","Hovedart 2: Varekøb",4011.116,2804.5050000000001,2923.5880000000002,2588.0189999999998,1206.6109999999999,"43,0%▲"]
["Region Nord,Børn-unge psykiatrien","Hovedart 4: Tjenesteydelser m.v. ",22073.01,16838.89,12737.117,8533.6630000000005,5234.119999999999,"31,1%▲"]
["Region Nord,Børn-unge psykiatrien","Hovedart 5: Tilskud og overførsler",null,null,null,null,0,""]
["Region Nord,Børn-unge psykiatrien","Hovedart 6: Finansudgifter",null,null,null,null,0,""]
["Region Nord,Børn-unge psykiatrien","Hovedart 7: Indtægter",-983.70600000000002,-499.83699999999999,-919.14599999999996,-518.95899999999995,-483.86900000000003,"96,8%▲"]
["Region Nord,Børn-unge psykiatrien","Hovedart 8: Finansindtægter",null,null,null,null,0,""]
["Region Nord,Børn-unge psykiatrien","Hovedart 9: Interne udgifter og indtægter",7664.4440000000004,1850.9860000000001,8260.2289999999994,1749.1469999999999,5813.4580000000005,"314,1%▲"]
["Region Nord,Børn-unge psykiatrien","I alt",{"$f":"SUMIFS((C7:C24),(A7:A24),A25)","v":138203.87499999997},{"$f":"SUMIFS((D7:D24),(A7:A24),A25)","v":120572.406},{"$f":"SUMIFS((E7:E24),(A7:A24),A25)","v":111993.77100000001},{"$f":"SUMIFS((F7:F24),(A7:A24),A25)","v":96227.849000000002},17631.468999999968,"14,6%▲"]
["Ikke fordelte udgifter i Region Nord, psykiatri",null,null,null,null,null,0,""]
["Ikke fordelte udgifter i Region Nord, psykiatri","Hovedart 1: Lønninger",null,null,null,null,0,""]
["Ikke fordelte udgifter i Region Nord, psykiatri","Hovedart 2: Varekøb",null,null,null,null,0,""]
["Ikke fordelte udgifter i Region Nord, psykiatri","Hovedart 4: Tjenesteydelser m.v. ",null,null,null,null,0,""]
["Ikke fordelte udgifter i Region Nord, psykiatri","Hovedart 5: Tilskud og overførsler",null,null,null,null,0,""]
["Ikke fordelte udgifter i Region Nord, psykiatri","Hovedart 6: Finansudgifter",null,null,null,null,0,""]
["Ikke fordelte udgifter i Region Nord, psykiatri","Hovedart 7: Indtægter",null,null,null,null,0,""]
["Ikke fordelte udgifter i Region Nord, psykiatri","Hovedart 8: Finansindtægter",null,null,null,null,0,""]
["Ikke fordelte udgifter i Region Nord, psykiatri","Hovedart 9: Interne udgifter og indtægter",null,null,null,null,0,""]
["Ikke fordelte udgifter i Region Nord, psykiatri","I alt",{"$f":"SUMIFS((C7:C34),(A7:A34),A35)","v":0},{"$f":"SUMIFS((D7:D34),(A7:A34),A35)","v":0},{"$f":"SUMIFS((E7:E34),(A7:A34),A35)","v":0},{"$f":"SUMIFS((F7:F34),(A7:A34),A35)","v":0},0,""]

{"sheet":"Skema 2","index":1,"n_rows":35,"n_cols":9,"rows_kept":35,"cut":false,"hidden":false,"merged":[[1,1,2,8]]}
["Region Nordjylland, psykiatriske sygehuse."]
[null,"Skema 2: Fællesudgifter og -indtægter vedrørende sygehusene.\n(1.000 kr.)"]
[]
[]
["Sygehus",null,2023,2022,2021,2020,"Δ2022-2023","% afvigelse","Begrundelse"]
["Region Nord, Voksen psykiatrien"]
["Region Nord, Voksen psykiatrien","Hovedart 1: Lønninger",18942.613000000001,17707.641,16382.876,17068.175999999999,{"$f":"IF(ISERROR(C7- D7)=TRUE,\"\",C7 - D7)","v":1234.9720000000016},{"$f":"IF(ISERROR((((C7- D7)/D7)*100)=TRUE),\"\",IF((((C7- D7)/D7)*100)<-7,FIXED(((C7- D7)/D7)*100, 1,TRUE) &\"%\" & \"▼\",IF((((C7- D7)/D7)*100)>7,FIXED(((C7- D7)/D7)*100, 1,TRUE) &\"%\" &\"▲\",FIXED(((C7- D7)/D7)*100, 1,TRUE)&\"%\")))","v":"7,0%"}]
["Region Nord, Voksen psykiatrien","Hovedart 2: Varekøb",8401.2559999999994,3096.386,7847.2610000000004,7624.43,5304.869999999999,"171,3%▲"]
["Region Nord, Voksen psykiatrien","Hovedart 4: Tjenesteydelser m.v. ",24901.032999999999,30056.718000000001,23837.762999999999,21372.258999999998,-5155.6850000000013,"-17,2%▼"]
["Region Nord, Voksen psykiatrien","Hovedart 5: Tilskud og overførsler",465.80799999999999,null,null,null,465.80799999999999,""]
["Region Nord, Voksen psykiatrien","Hovedart 6: Finansudgifter",null,null,null,null,0,""]
["Region Nord, Voksen psykiatrien","Hovedart 7: Indtægter",-1723.1130000000001,-649.57100000000003,-658.75400000000002,-819.02300000000002,-1073.5419999999999,"165,3%▲"]
["Region Nord, Voksen psykiatrien","Hovedart 8: Finansindtægter",-2911.9189999999999,null,null,null,-2911.9189999999999,""]
["Region Nord, Voksen psykiatrien","Hovedart 9: Interne udgifter og indtægter",-11244.897999999999,-6868.7120000000004,-6001.4889999999996,-5935.6090000000004,-4376.1859999999988,"63,7%▲"]
["Region Nord, Voksen psykiatrien","I alt",{"$f":"SUMIFS((C7:C14),(A7:A14),A15)","v":36830.78},{"$f":"SUMIFS((D7:D14),(A7:A14),A15)","v":43342.461999999992},{"$f":"SUMIFS((E7:E14),(A7:A14),A15)","v":41407.656999999999},{"$f":"SUMIFS((F7:F14),(A7:A14),A15)","v":39310.232999999993},-6511.6819999999934,"-15,0%▼"]
["Region Nord, Børn-unge psykiatrien",null,null,null,null,null,0,""]
["Region Nord, Børn-unge psykiatrien","Hovedart 1: Lønninger",5636.2719999999999,3478.2139999999999,3833.7139999999999,2048.951,2158.058,"62,0%▲"]
["Region Nord, Børn-unge psykiatrien","Hovedart 2: Varekøb",2612.36,664.01599999999996,1914.9549999999999,2178.6680000000001,1948.3440000000001,"293,4%▲"]
["Region Nord, Børn-unge psykiatrien","Hovedart 4: Tjenesteydelser m.v. ",7121.7719999999999,5865.1080000000002,5441.33,2508.6120000000001,1256.6639999999998,"21,4%▲"]
["Region Nord, Børn-unge psykiatrien","Hovedart 5: Tilskud og overførsler",141.92500000000001,null,null,null,141.92500000000001,""]
["Region Nord, Børn-unge psykiatrien","Hovedart 6: Finansudgifter",null,null,null,null,0,""]
["Region Nord, Børn-unge psykiatrien","Hovedart 7: Indtægter",-437.91199999999998,-121.441,-149.12700000000001,-96.337000000000003,-316.471,"260,6%▲"]
["Region Nord, Børn-unge psykiatrien","Hovedart 8: Finansindtægter",-887.22,null,null,null,-887.22,""]
["Region Nord, Børn-unge psykiatrien","Hovedart 9: Interne udgifter og indtægter",-3440.67,-1377.347,-1489.261,-681.31700000000001,-2063.3230000000003,"149,8%▲"]
["Region Nord, Børn-unge psykiatrien","I alt",{"$f":"SUMIFS((C7:C24),(A7:A24),A25)","v":10746.526999999998},{"$f":"SUMIFS((D7:D24),(A7:A24),A25)","v":8508.5499999999993},{"$f":"SUMIFS((E7:E24),(A7:A24),A25)","v":9551.610999999999},{"$f":"SUMIFS((F7:F24),(A7:A24),A25)","v":5958.5770000000002},2237.976999999999,"26,3%▲"]
["Ikke fordelte udgifter i Region Nord, psykiatri",null,null,null,null,null,0,""]
["Ikke fordelte udgifter i Region Nord, psykiatri","Hovedart 1: Lønninger",null,null,null,null,0,""]
["Ikke fordelte udgifter i Region Nord, psykiatri","Hovedart 2: Varekøb",null,null,null,null,0,""]
["Ikke fordelte udgifter i Region Nord, psykiatri","Hovedart 4: Tjenesteydelser m.v. ",null,null,null,null,0,""]
["Ikke fordelte udgifter i Region Nord, psykiatri","Hovedart 5: Tilskud og overførsler",null,null,null,null,0,""]
["Ikke fordelte udgifter i Region Nord, psykiatri","Hovedart 6: Finansudgifter",null,null,null,null,0,""]
["Ikke fordelte udgifter i Region Nord, psykiatri","Hovedart 7: Indtægter",null,null,null,null,0,""]
["Ikke fordelte udgifter i Region Nord, psykiatri","Hovedart 8: Finansindtægter",null,null,null,null,0,""]
["Ikke fordelte udgifter i Region Nord, psykiatri","Hovedart 9: Interne udgifter og indtægter",null,null,null,null,0,""]
["Ikke fordelte udgifter i Region Nord, psykiatri","I alt",{"$f":"SUMIFS((C7:C34),(A7:A34),A35)","v":0},{"$f":"SUMIFS((D7:D34),(A7:A34),A35)","v":0},{"$f":"SUMIFS((E7:E34),(A7:A34),A35)","v":0},{"$f":"SUMIFS((F7:F34),(A7:A34),A35)","v":0},0,""]

{"sheet":"Skema 3","index":2,"n_rows":26,"n_cols":9,"rows_kept":26,"cut":false,"hidden":false,"merged":[[1,1,2,8]]}
["Region Nordjylland, psykiatriske sygehuse."]
[null,"Skema 3:Regionale fællesudgifter og -indtægter. (1.000 kr.)"]
[]
[]
["Sygehus",null,2023,2022,2021,2020,"Δ2022-2023","% afvigelse","Begrundelse"]
["Region Nord, Voksen psykiatrien"]
["Region Nord, Voksen psykiatrien","1.70.50: Andel af fællesudgifter",24787.384999999998,24108.344000000001,22210.047999999999,23397.079000000002,{"$f":"IF(ISERROR(C7- D7)=TRUE,\"\",C7 - D7)","v":679.04099999999744},{"$f":"IF(ISERROR((((C7- D7)/D7)*100)=TRUE),\"\",IF((((C7- D7)/D7)*100)<-7,FIXED(((C7- D7)/D7)*100, 1,TRUE) &\"%\" & \"▼\",IF((((C7- D7)/D7)*100)>7,FIXED(((C7- D7)/D7)*100, 1,TRUE) &\"%\" &\"▲\",FIXED(((C7- D7)/D7)*100, 1,TRUE)&\"%\")))","v":"2,8%"}]
["Region Nord, Voksen psykiatrien","1.60.40: Andel af central administration af sundhed (til og med 2019)",null,null,null,null,0,""]
["Region Nord, Voksen psykiatrien","1.60.41: Andel af øvrige udgifter og indtægter",384.14299999999997,334.23200000000003,292.476,451.505,49.910999999999945,"14,9%▲"]
["Region Nord, Voksen psykiatrien","1.50.33: Andel af central administration af sundhed (ekskl. psykiatri)",null,null,null,null,0,""]
["Region Nord, Voksen psykiatrien","1.50.35: Administration af det psykiatriske område (kun central del)",3017.8589999999999,3504.7919999999999,3479.1419999999998,3530.3760000000002,-486.93299999999999,"-13,9%▼"]
["Region Nord, Voksen psykiatrien","I alt",{"$f":"SUMIFS((C7:C11),(A7:A11),A12)","v":28189.386999999999},{"$f":"SUMIFS((D7:D11),(A7:A11),A12)","v":27947.368000000002},{"$f":"SUMIFS((E7:E11),(A7:A11),A12)","v":25981.665999999997},{"$f":"SUMIFS((F7:F11),(A7:A11),A12)","v":27378.960000000003},242.01899999999659,"0,9%"]
["Region Nord, Børn-unge psykiatrien",null,null,null,null,null,0,""]
["Region Nord, Børn-unge psykiatrien","1.70.50: Andel af fællesudgifter",7552.3609999999999,4817.1000000000004,5447.23,2692.8850000000002,2735.2609999999995,"56,8%▲"]
["Region Nord, Børn-unge psykiatrien","1.60.40: Andel af central administration af sundhed (til og med 2019)",null,null,null,null,0,""]
["Region Nord, Børn-unge psykiatrien","1.60.41: Andel af øvrige udgifter og indtægter",117.04300000000001,66.783000000000001,71.733000000000004,51.966000000000001,50.260000000000005,"75,3%▲"]
["Region Nord, Børn-unge psykiatrien","1.50.33: Andel af central administration af sundhed (ekskl. psykiatri)",null,null,null,null,0,""]
["Region Nord, Børn-unge psykiatrien","1.50.35: Administration af det psykiatriske område (kun central del)",919.49800000000005,700.29399999999998,853.29300000000001,406.32799999999997,219.20400000000006,"31,3%▲"]
["Region Nord, Børn-unge psykiatrien","I alt",{"$f":"SUMIFS((C7:C18),(A7:A18),A19)","v":8588.902},{"$f":"SUMIFS((D7:D18),(A7:A18),A19)","v":5584.1770000000006},{"$f":"SUMIFS((E7:E18),(A7:A18),A19)","v":6372.2559999999994},{"$f":"SUMIFS((F7:F18),(A7:A18),A19)","v":3151.1790000000001},3004.7249999999995,"53,8%▲"]
["Ikke fordelte udgifter i Region Nord, psykiatri",null,null,null,null,null,0,""]
["Ikke fordelte udgifter i Region Nord, psykiatri","1.70.50: Andel af fællesudgifter",null,null,null,null,0,""]
["Ikke fordelte udgifter i Region Nord, psykiatri","1.60.40: Andel af central administration af sundhed (til og med 2019)",null,null,null,null,0,""]
["Ikke fordelte udgifter i Region Nord, psykiatri","1.60.41: Andel af øvrige udgifter og indtægter",null,null,null,null,0,""]
["Ikke fordelte udgifter i Region Nord, psykiatri","1.50.33: Andel af central administration af sundhed (ekskl. psykiatri)",null,null,null,null,0,""]
["Ikke fordelte udgifter i Region Nord, psykiatri","1.50.35: Administration af det psykiatriske område (kun central del)",null,null,null,null,0,""]
["Ikke fordelte udgifter i Region Nord, psykiatri","I alt",{"$f":"SUMIFS((C7:C25),(A7:A25),A26)","v":0},{"$f":"SUMIFS((D7:D25),(A7:A25),A26)","v":0},{"$f":"SUMIFS((E7:E25),(A7:A25),A26)","v":0},{"$f":"SUMIFS((F7:F25),(A7:A25),A26)","v":0},0,""]

{"sheet":"Skema 4","index":3,"n_rows":20,"n_cols":9,"rows_kept":20,"cut":false,"hidden":false,"merged":[[1,1,2,8]]}
["Region Nordjylland, psykiatriske sygehuse."]
[null,"Skema 4: Udgifter og indtægter til og fra psykiatriske afdelinger konteret på somatiske sygehuse. (1.000 kr.)"]
[]
[]
["Sygehus",null,2023,2022,2021,2020,"Δ2022-2023","% afvigelse","Begrundelse"]
["Region Nord, Voksen psykiatrien"]
["Region Nord, Voksen psykiatrien","Korrektion",null,null,null,null,{"$f":"IF(ISERROR(C7- D7)=TRUE,\"\",C7 - D7)","v":0},{"$f":"IF(ISERROR((((C7- D7)/D7)*100)=TRUE),\"\",IF((((C7- D7)/D7)*100)<-7,FIXED(((C7- D7)/D7)*100, 1,TRUE) &\"%\" & \"▼\",IF((((C7- D7)/D7)*100)>7,FIXED(((C7- D7)/D7)*100, 1,TRUE) &\"%\" &\"▲\",FIXED(((C7- D7)/D7)*100, 1,TRUE)&\"%\")))","v":""}]
["Region Nord, Voksen psykiatrien","Lønudg. på psyk. afd.,somatiske sygehuse",null,null,null,null,0,""]
["Region Nord, Voksen psykiatrien","Øvrige udg. til psyk. afd.,somatiske sygehuse",null,null,null,null,0,""]
["Region Nord, Voksen psykiatrien","I alt",{"$f":"SUMIFS((C7:C9),(A7:A9),A10)","v":0},{"$f":"SUMIFS((D7:D9),(A7:A9),A10)","v":0},{"$f":"SUMIFS((E7:E9),(A7:A9),A10)","v":0},{"$f":"SUMIFS((F7:F9),(A7:A9),A10)","v":0},0,""]
["Region Nord, Børn-unge psykiatrien",null,null,null,null,null,0,""]
["Region Nord, Børn-unge psykiatrien","Korrektion",null,null,null,null,0,""]
["Region Nord, Børn-unge psykiatrien","Lønudg. på psyk. afd.,somatiske sygehuse",null,null,null,null,0,""]
["Region Nord, Børn-unge psykiatrien","Øvrige udg. til psyk. afd.,somatiske sygehuse",null,null,null,null,0,""]
["Region Nord, Børn-unge psykiatrien","I alt",{"$f":"SUMIFS((C7:C14),(A7:A14),A15)","v":0},{"$f":"SUMIFS((D7:D14),(A7:A14),A15)","v":0},{"$f":"SUMIFS((E7:E14),(A7:A14),A15)","v":0},{"$f":"SUMIFS((F7:F14),(A7:A14),A15)","v":0},0,""]
["Ikke fordelte udgifter i Region Nord, psykiatri",null,null,null,null,null,0,""]
["Ikke fordelte udgifter i Region Nord, psykiatri","Korrektion",null,null,null,null,0,""]
["Ikke fordelte udgifter i Region Nord, psykiatri","Lønudg. på psyk. afd.,somatiske sygehuse",null,null,null,null,0,""]
["Ikke fordelte udgifter i Region Nord, psykiatri","Øvrige udg. til psyk. afd.,somatiske sygehuse",null,null,null,null,0,""]
["Ikke fordelte udgifter i Region Nord, psykiatri","I alt",{"$f":"SUMIFS((C7:C19),(A7:A19),A20)","v":0},{"$f":"SUMIFS((D7:D19),(A7:A19),A20)","v":0},{"$f":"SUMIFS((E7:E19),(A7:A19),A20)","v":0},{"$f":"SUMIFS((F7:F19),(A7:A19),A20)","v":0},0,""]

{"sheet":"Skema 5","index":4,"n_rows":20,"n_cols":9,"rows_kept":20,"cut":false,"hidden":false,"merged":[[1,1,2,8]]}
["Region Nordjylland, psykiatriske sygehuse."]
[null,"Skema 5: Leasing- og huslejeudgifter. (1.000 kr.)"]
[]
[]
["Sygehus",null,2023,2022,2021,2020,"Δ2022-2023","% afvigelse","Begrundelse"]
["RegionNord, Voksen psykiatrien"]
["RegionNord, Voksen psykiatrien","Andre udgifter",null,null,null,null,{"$f":"IF(ISERROR(C7- D7)=TRUE,\"\",C7 - D7)","v":0},{"$f":"IF(ISERROR((((C7- D7)/D7)*100)=TRUE),\"\",IF((((C7- D7)/D7)*100)<-7,FIXED(((C7- D7)/D7)*100, 1,TRUE) &\"%\" & \"▼\",IF((((C7- D7)/D7)*100)>7,FIXED(((C7- D7)/D7)*100, 1,TRUE) &\"%\" &\"▲\",FIXED(((C7- D7)/D7)*100, 1,TRUE)&\"%\")))","v":""}]
["RegionNord, Voksen psykiatrien","Leasing- og lejeudgifter",415.96899999999999,1020.05,1051.559,844.39099999999996,-604.0809999999999,"-59,2%▼"]
["RegionNord, Voksen psykiatrien","Huslejeudgifter",1758.06,1821.5920000000001,1662.596,1837.451,-63.532000000000153,"-3,5%"]
["RegionNord, Voksen psykiatrien","I alt",{"$f":"SUMIFS((C7:C9),(A7:A9),A10)","v":2174.029},{"$f":"SUMIFS((D7:D9),(A7:A9),A10)","v":2841.6419999999998},{"$f":"SUMIFS((E7:E9),(A7:A9),A10)","v":2714.1549999999997},{"$f":"SUMIFS((F7:F9),(A7:A9),A10)","v":2681.8420000000001},-667.61299999999983,"-23,5%▼"]
["Region Nord, Børn-unge psykiatrien",null,null,null,null,null,0,""]
["Region Nord, Børn-unge psykiatrien","Andre udgifter",null,null,null,null,0,""]
["Region Nord, Børn-unge psykiatrien","Leasing- og lejeudgifter",126.47,203.81299999999999,257.90499999999997,97.185000000000002,-77.342999999999989,"-37,9%▼"]
["Region Nord, Børn-unge psykiatrien","Huslejeudgifter",535.65599999999995,363.97300000000001,407.76799999999997,211.48099999999999,171.68299999999994,"47,2%▲"]
["Region Nord, Børn-unge psykiatrien","I alt",{"$f":"SUMIFS((C7:C14),(A7:A14),A15)","v":662.12599999999998},{"$f":"SUMIFS((D7:D14),(A7:A14),A15)","v":567.78600000000006},{"$f":"SUMIFS((E7:E14),(A7:A14),A15)","v":665.673},{"$f":"SUMIFS((F7:F14),(A7:A14),A15)","v":308.666},94.339999999999918,"16,6%▲"]
["Ikke fordelte udgifter i Region Nord, psykiatri",null,null,null,null,null,0,""]
["Ikke fordelte udgifter i Region Nord, psykiatri","Andre udgifter",null,null,null,null,0,""]
["Ikke fordelte udgifter i Region Nord, psykiatri","Leasing- og lejeudgifter",null,null,null,null,0,""]
["Ikke fordelte udgifter i Region Nord, psykiatri","Huslejeudgifter",null,null,null,null,0,""]
["Ikke fordelte udgifter i Region Nord, psykiatri","I alt",{"$f":"SUMIFS((C7:C19),(A7:A19),A20)","v":0},{"$f":"SUMIFS((D7:D19),(A7:A19),A20)","v":0},{"$f":"SUMIFS((E7:E19),(A7:A19),A20)","v":0},{"$f":"SUMIFS((F7:F19),(A7:A19),A20)","v":0},0,""]

{"sheet":"Skema 6","index":5,"n_rows":155,"n_cols":9,"rows_kept":155,"cut":false,"hidden":false,"merged":[[1,1,2,8]]}
["Region Nordjylland, psykiatriske sygehuse."]
[null,"Skema 6: Udgifter til andet end patientbehandling. (1.000 kr.)"]
[]
[]
["Sygehus",null,2023,2022,2021,2020,"Δ2022-2023","% afvigelse","Begrundelse"]
["Region Nord, Voksen psykiatrien"]
["Region Nord, Voksen psykiatrien","Skema 6.1: Center for voldsramte (Bispebjerg)",null,null,null,null,{"$f":"IF(ISERROR(C7- D7)=TRUE,\"\",C7 - D7)","v":0},{"$f":"IF(ISERROR((((C7- D7)/D7)*100)=TRUE),\"\",IF((((C7- D7)/D7)*100)<-7,FIXED(((C7- D7)/D7)*100, 1,TRUE) &\"%\" & \"▼\",IF((((C7- D7)/D7)*100)>7,FIXED(((C7- D7)/D7)*100, 1,TRUE) &\"%\" &\"▲\",FIXED(((C7- D7)/D7)*100, 1,TRUE)&\"%\")))","v":""}]
["Region Nord, Voksen psykiatrien","Skema 6.2: Ventilatørbistand i hjemmet, respiratorpatienter",null,null,null,null,0,""]
["Region Nord, Voksen psykiatrien","Skema 6.3: Blodprøvetagning i eget hjem",null,null,null,null,0,""]
["Region Nord, Voksen psykiatrien","Skema 6.4: Psykinfo + pårørende",2925.3090000000002,3666.5749999999998,4053.1750000000002,4329.4189999999999,-741.26599999999962,"-20,2%▼"]
["Region Nord, Voksen psykiatrien","Skema 6.5: Leveret udstyr til patienter i eget hjem, ilt og sonderemedier",null,null,null,null,0,""]
["Region Nord, Voksen psykiatrien","Skema 6.6: Montebello (Nordsjællands Hospitaler)",null,null,null,null,0,""]
["Region Nord, Voksen psykiatrien","Skema 6.7: Satspulje korrektioner mellem år",null,null,null,null,0,""]
["Region Nord, Voksen psykiatrien","Skema 6.8: Klinisk farmakologisk rådgivning af praksissektoren",null,null,null,null,0,""]
["Region Nord, Voksen psykiatrien","Skema 6.9: Tandregulering ifm. operation",null,null,null,null,0,""]
["Region Nord, Voksen psykiatrien","Skema 6.10: Giftlinjen",null,null,null,null,0,""]
["Region Nord, Voksen psykiatrien","Skema 6.11: Tjenestemandspensioner",null,null,null,null,0,""]
["Region Nord, Voksen psykiatrien","Skema 6.12: Art 4.6 Betalinger til staten",null,null,null,null,0,""]
["Region Nord, Voksen psykiatrien","Skema 6.13: Art 4.7 Betalinger til kommuner",null,null,null,null,0,""]
["Region Nord, Voksen psykiatrien","Skema 6.14: Art 4.8 Betalinger til andre regioner",15362.454,16943.546999999999,15091.294,19590.705999999998,-1581.0929999999989,"-9,3%▼"]
["Region Nord, Voksen psykiatrien","Skema 6.15: Art 7.6 Betalinger fra staten",null,null,null,null,0,""]
["Region Nord, Voksen psykiatrien","Skema 6.16: Art 7.7 Betalinger fra kommuner",null,-16151.235000000001,-16308.424000000001,null,16151.235000000001,"-100,0%▼"]
["Region Nord, Voksen psykiatrien","Skema 6.17: Art 7.8 Betalinger fra andre regioner",null,null,null,null,0,""]
["Region Nord, Voksen psykiatrien","Skema 6.18: Betalinger til selvejende, private og udenlandske sygehuse",1.1040000000000001,0.39200000000000002,2181.92,2213.8009999999999,0.71200000000000008,"181,6%▲"]
["Region Nord, Voksen psykiatrien","Skema 6.19: Dækningsafgift/ejendomsskat",2371.8719999999998,2578.308,2433.5169999999998,2662.2750000000001,-206.43600000000015,"-8,0%▼"]
["Region Nord, Voksen psykiatrien","Skema 6.20: Forsikringer/erstatninger",null,null,null,null,0,""]
["Region Nord, Voksen psykiatrien","Skema 6.21: Vederlagsfri Lab. –ydelser og andre ydelser til praksissektoren",null,null,null,null,0,""]
["Region Nord, Voksen psykiatrien","Skema 6.22: Patienttransport",3677.8530000000001,3424.6669999999999,2906.4479999999999,3240.03,253.18600000000015,"7,4%▲"]
["Region Nord, Voksen psykiatrien","Skema 6.23: Serviceydelser til/fra andre institutioner eller sygehuse udenfor regionen",null,null,null,null,0,""]
["Region Nord, Voksen psykiatrien","Skema 6.24: Udgifter til eksternt finansierede forskning",null,null,null,null,0,""]
["Region Nord, Voksen psykiatrien","Skema 6.25: Forebyggelse rettet mod praksissektoren og kommuner",null,null,null,null,0,""]
["Region Nord, Voksen psykiatrien","Skema 6.26: Praksisreservelæger",null,null,null,null,0,""]
["Region Nord, Voksen psykiatrien","Skema 6.27: Præhospital",null,null,null,null,0,""]
["Region Nord, Voksen psykiatrien","Skema 6.28: Udgifter til Danske Regioner (Kontigent, MedCom, Fællesproj.)",null,null,null,null,0,""]
["Region Nord, Voksen psykiatrien","Skema 6.29: Hospice",null,null,null,null,0,""]
["Region Nord, Voksen psykiatrien","Skema 6.30: Konsulenter(Praksis)",null,null,null,null,0,""]
["Region Nord, Voksen psykiatrien","Skema 6.31: Videnskabsetisk Komité",null,null,null,null,0,""]
["Region Nord, Voksen psykiatrien","Skema 6.32: Tolkebistand",194.80799999999999,144.07900000000001,141.68600000000001,243.46199999999999,50.728999999999985,"35,2%▲"]
["Region Nord, Voksen psykiatrien","Skema 6.33: Dansk Center for Partikelterapi",null,null,null,null,{"$f":"IF(ISERROR(C39- D39)=TRUE,\"\",C39 - D39)","v":0},{"$f":"IF(ISERROR((((C39- D39)/D39)*100)=TRUE),\"\",IF((((C39- D39)/D39)*100)<-7,FIXED(((C39- D39)/D39)*100, 1,TRUE) &\"%\" & \"▼\",IF((((C39- D39)/D39)*100)>7,FIXED(((C39- D39)/D39)*100, 1,TRUE) &\"%\" &\"▲\",FIXED(((C39- D39)/D39)*100, 1,TRUE)&\"%\")))","v":""}]
["Region Nord, Voksen psykiatrien","Skema 6.34: Politisk organisation – overførte udgifter fra funktion 4.10.01, 4.10.02 og 4.10.04",null,null,null,null,0,""]
["Region Nord, Voksen psykiatrien","Skema 6.35: Øvrige udgifter, Region Sjælland",null,null,null,null,0,""]
["Region Nord, Voksen psykiatrien","Skema 6.36: Sundhedsydelser ifm. specialsektor",null,null,null,null,0,""]
["Region Nord, Voksen psykiatrien","Skema 6.37: Udgifter til primær sundhed fra skema 2",null,null,null,null,0,""]
["Region Nord, Voksen psykiatrien","Skema 6.38: Udgifter til primær sundhed fra skema 3",null,null,null,null,0,""]
["Region Nord, Voksen psykiatrien","Skema 6.39: Særlige udgifter ifm. COVID-19",null,569.31299999999999,1066.4659999999999,893.02499999999998,-569.31299999999999,"-100,0%▼"]
["Region Nord, Voksen psykiatrien","Skema 6.40: Udleveret udstyr/tilbehør ifm. cochlear implantater",null,null,null,null,0,""]
["Region Nord, Voksen psykiatrien","Skema 6.41: Luxturna-behandling, Rigshospitalet",null,null,null,null,0,""]
["Region Nord, Voksen psykiatrien","Skema 6.42: Udleveret medicin",null,null,null,null,0,""]
["Region Nord, Voksen psykiatrien","Skema 6.43: Udgifter ifm. sundhedsklynger",null,null,null,null,0,""]
["Region Nord, Voksen psykiatrien","Skema 6.44: Ukrainske patienter under særlov eller asyl",null,null,null,null,0,""]
["Region Nord, Voksen psykiatrien","Skema 6.45: Udgifter ifm. de særlige pladser i psykiatrien",14968.5,null,null,null,14968.5,""]
["Region Nord, Voksen psykiatrien","Skema 6.46: Sikringsafdelingen, Region Sjælland",null,null,null,null,0,""]
["Region Nord, Voksen psykiatrien","Skema 6.47: Øvrige (Kan kun benyttes efter aftale med Sundhedsdatastyrelsen)",null,null,null,null,0,""]
["Region Nord, Voksen psykiatrien","Lukkede poster (må kun bruges af Sundhedsdatastyrelsen)",null,null,null,null,0,""]
["Region Nord, Voksen psykiatrien","I alt",{"$f":"SUMIFS((C7:C54),(A7:A54),A55)","v":39501.899999999994},{"$f":"SUMIFS((D7:D54),(A7:A54),A55)","v":11175.645999999999},{"$f":"SUMIFS((E7:E54),(A7:A54),A55)","v":11566.082},{"$f":"SUMIFS((F7:F54),(A7:A54),A55)","v":33172.718000000001},28326.253999999994,"253,5%▲"]
["Region Nord, Børn-unge psykiatrien",null,null,null,null,null,0,""]
["Region Nord, Børn-unge psykiatrien","Skema 6.1: Center for voldsramte (Bispebjerg)",null,null,null,null,0,""]
["Region Nord, Børn-unge psykiatrien","Skema 6.2: Ventilatørbistand i hjemmet, respiratorpatienter",null,null,null,null,0,""]
["Region Nord, Børn-unge psykiatrien","Skema 6.3: Blodprøvetagning i eget hjem",null,null,null,null,0,""]
["Region Nord, Børn-unge psykiatrien","Skema 6.4: Psykinfo + pårørende",891.3,732.62,994.08100000000002,498.29399999999998,158.67999999999995,"21,7%▲"]
["Region Nord, Børn-unge psykiatrien","Skema 6.5: Leveret udstyr til patienter i eget hjem, ilt og sonderemedier",null,null,null,null,0,""]
["Region Nord, Børn-unge psykiatrien","Skema 6.6: Montebello (Nordsjællands Hospitaler)",null,null,null,null,0,""]
["Region Nord, Børn-unge psykiatrien","Skema 6.7: Satspulje korrektioner mellem år",null,null,null,null,0,""]
["Region Nord, Børn-unge psykiatrien","Skema 6.8: Klinisk farmakologisk rådgivning af praksissektoren",null,null,null,null,0,""]
["Region Nord, Børn-unge psykiatrien","Skema 6.9: Tandregulering ifm. operation",null,null,null,null,0,""]
["Region Nord, Børn-unge psykiatrien","Skema 6.10: Giftlinjen",null,null,null,null,0,""]
["Region Nord, Børn-unge psykiatrien","Skema 6.11: Tjenestemandspensioner",null,null,null,null,0,""]
["Region Nord, Børn-unge psykiatrien","Skema 6.12: Art 4.6 Betalinger til staten",null,null,null,null,0,""]
["Region Nord, Børn-unge psykiatrien","Skema 6.13: Art 4.7 Betalinger til kommuner",null,null,null,null,0,""]
["Region Nord, Børn-unge psykiatrien","Skema 6.14: Art 4.8 Betalinger til andre regioner",22591.723999999998,11720.749,9572.5139999999992,4397.1790000000001,10870.974999999999,"92,7%▲"]
["Region Nord, Børn-unge psykiatrien","Skema 6.15: Art 7.6 Betalinger fra staten",null,null,null,null,{"$f":"IF(ISERROR(C71- D71)=TRUE,\"\",C71 - D71)","v":0},{"$f":"IF(ISERROR((((C71- D71)/D71)*100)=TRUE),\"\",IF((((C71- D71)/D71)*100)<-7,FIXED(((C71- D71)/D71)*100, 1,TRUE) &\"%\" & \"▼\",IF((((C71- D71)/D71)*100)>7,FIXED(((C71- D71)/D71)*100, 1,TRUE) &\"%\" &\"▲\",FIXED(((C71- D71)/D71)*100, 1,TRUE)&\"%\")))","v":""}]
["Region Nord, Børn-unge psykiatrien","Skema 6.16: Art 7.7 Betalinger fra kommuner",null,null,null,null,0,""]
["Region Nord, Børn-unge psykiatrien","Skema 6.17: Art 7.8 Betalinger fra andre regioner",null,null,null,null,0,""]
["Region Nord, Børn-unge psykiatrien","Skema 6.18: Betalinger til selvejende, private og udenlandske sygehuse",null,7.8E-2,535.13699999999994,254.797,-7.8E-2,"-100,0%▼"]
["Region Nord, Børn-unge psykiatrien","Skema 6.19: Dækningsafgift/ejendomsskat",722.67499999999995,515.173,596.84400000000005,306.41399999999999,207.50199999999995,"40,3%▲"]
["Region Nord, Børn-unge psykiatrien","Skema 6.20: Forsikringer/erstatninger",null,null,null,null,0,""]
["Region Nord, Børn-unge psykiatrien","Skema 6.21: Vederlagsfri Lab. –ydelser og andre ydelser til praksissektoren",null,null,null,null,0,""]
["Region Nord, Børn-unge psykiatrien","Skema 6.22: Patienttransport",1120.5889999999999,684.28399999999999,712.83500000000004,372.911,436.30499999999995,"63,8%▲"]
["Region Nord, Børn-unge psykiatrien","Skema 6.23: Serviceydelser til/fra andre institutioner eller sygehuse udenfor regionen",null,null,null,null,0,""]
["Region Nord, Børn-unge psykiatrien","Skema 6.24: Udgifter til eksternt finansierede forskning",null,null,null,null,0,""]
["Region Nord, Børn-unge psykiatrien","Skema 6.25: Forebyggelse rettet mod praksissektoren og kommuner",null,null,null,null,0,""]
["Region Nord, Børn-unge psykiatrien","Skema 6.26: Praksisreservelæger",null,null,null,null,0,""]
["Region Nord, Børn-unge psykiatrien","Skema 6.27: Præhospital",null,null,null,null,0,""]
["Region Nord, Børn-unge psykiatrien","Skema 6.28: Udgifter til Danske Regioner (Kontigent, MedCom, Fællesproj.)",null,null,null,null,0,""]
["Region Nord, Børn-unge psykiatrien","Skema 6.29: Hospice",null,null,null,null,0,""]
["Region Nord, Børn-unge psykiatrien","Skema 6.30: Konsulenter(Praksis)",null,null,null,null,0,""]
["Region Nord, Børn-unge psykiatrien","Skema 6.31: Videnskabsetisk Komité",null,null,null,null,0,""]
["Region Nord, Børn-unge psykiatrien","Skema 6.32: Tolkebistand",59.354999999999997,28.789000000000001,34.75,28.021000000000001,30.565999999999995,"106,2%▲"]
["Region Nord, Børn-unge psykiatrien","Skema 6.33: Dansk Center for Partikelterapi",null,null,null,null,0,""]
["Region Nord, Børn-unge psykiatrien","Skema 6.34: Politisk organisation – overførte udgifter fra funktion 4.10.01, 4.10.02 og 4.10.04",null,null,null,null,0,""]
["Region Nord, Børn-unge psykiatrien","Skema 6.35: Øvrige udgifter, Region Sjælland",null,null,null,null,0,""]
["Region Nord, Børn-unge psykiatrien","Skema 6.36: Sundhedsydelser ifm. specialsektor",null,null,null,null,0,""]
["Region Nord, Børn-unge psykiatrien","Skema 6.37: Udgifter til primær sundhed fra skema 2",null,null,null,null,0,""]
["Region Nord, Børn-unge psykiatrien","Skema 6.38: Udgifter til primær sundhed fra skema 3",null,null,null,null,0,""]
["Region Nord, Børn-unge psykiatrien","Skema 6.39: Særlige udgifter ifm. COVID-19",null,113.755,261.56099999999998,103,-113.755,"-100,0%▼"]
["Region Nord, Børn-unge psykiatrien","Skema 6.40: Udleveret udstyr/tilbehør ifm. cochlear implantater",null,null,null,null,0,""]
["Region Nord, Børn-unge psykiatrien","Skema 6.41: Luxturna-behandling, Rigshospitalet",null,null,null,null,0,""]
["Region Nord, Børn-unge psykiatrien","Skema 6.42: Udleveret medicin",null,null,null,null,0,""]
["Region Nord, Børn-unge psykiatrien","Skema 6.43: Udgifter ifm. sundhedsklynger",null,null,null,null,0,""]
["Region Nord, Børn-unge psykiatrien","Skema 6.44: Ukrainske patienter under særlov eller asyl",null,null,null,null,0,""]
["Region Nord, Børn-unge psykiatrien","Skema 6.45: Udgifter ifm. de særlige pladser i psykiatrien",null,null,null,null,0,""]
["Region Nord, Børn-unge psykiatrien","Skema 6.46: Sikringsafdelingen, Region Sjælland",null,null,null,null,0,""]
["Region Nord, Børn-unge psykiatrien","Skema 6.47: Øvrige (Kan kun benyttes efter aftale med Sundhedsdatastyrelsen)",null,null,null,null,{"$f":"IF(ISERROR(C103- D103)=TRUE,\"\",C103 - D103)","v":0},{"$f":"IF(ISERROR((((C103- D103)/D103)*100)=TRUE),\"\",IF((((C103- D103)/D103)*100)<-7,FIXED(((C103- D103)/D103)*100, 1,TRUE) &\"%\" & \"▼\",IF((((C103- D103)/D103)*100)>7,FIXED(((C103- D103)/D103)*100, 1,TRUE) &\"%\" &\"▲\",FIXED(((C103- D103)/D103)*100, 1,TRUE)&\"%\")))","v":""}]
["Region Nord, Børn-unge psykiatrien","Lukkede poster (må kun bruges af Sundhedsdatastyrelsen)",null,null,null,null,0,""]
["Region Nord, Børn-unge psykiatrien","I alt",{"$f":"SUMIFS((C7:C104),(A7:A104),A105)","v":25385.642999999996},{"$f":"SUMIFS((D7:D104),(A7:A104),A105)","v":13795.448},{"$f":"SUMIFS((E7:E104),(A7:A104),A105)","v":12707.722},{"$f":"SUMIFS((F7:F104),(A7:A104),A105)","v":5960.6159999999991},11590.194999999996,"84,0%▲"]
["Ikke fordelte udgifter i Region Nord, psykiatri",null,null,null,null,null,0,""]
["Ikke fordelte udgifter i Region Nord, psykiatri","Skema 6.1: Center for voldsramte (Bispebjerg)",null,null,null,null,0,""]
["Ikke fordelte udgifter i Region Nord, psykiatri","Skema 6.2: Ventilatørbistand i hjemmet, respiratorpatienter",null,null,null,null,0,""]
["Ikke fordelte udgifter i Region Nord, psykiatri","Skema 6.3: Blodprøvetagning i eget hjem",null,null,null,null,0,""]
["Ikke fordelte udgifter i Region Nord, psykiatri","Skema 6.4: Psykinfo + pårørende",null,null,null,null,0,""]
["Ikke fordelte udgifter i Region Nord, psykiatri","Skema 6.5: Leveret udstyr til patienter i eget hjem, ilt og sonderemedier",null,null,null,null,0,""]
["Ikke fordelte udgifter i Region Nord, psykiatri","Skema 6.6: Montebello (Nordsjællands Hospitaler)",null,null,null,null,0,""]
["Ikke fordelte udgifter i Region Nord, psykiatri","Skema 6.7: Satspulje korrektioner mellem år",null,null,null,null,0,""]
["Ikke fordelte udgifter i Region Nord, psykiatri","Skema 6.8: Klinisk farmakologisk rådgivning af praksissektoren",null,null,null,null,0,""]
["Ikke fordelte udgifter i Region Nord, psykiatri","Skema 6.9: Tandregulering ifm. operation",null,null,null,null,0,""]
["Ikke fordelte udgifter i Region Nord, psykiatri","Skema 6.10: Giftlinjen",null,null,null,null,0,""]
["Ikke fordelte udgifter i Region Nord, psykiatri","Skema 6.11: Tjenestemandspensioner",null,null,null,null,0,""]
["Ikke fordelte udgifter i Region Nord, psykiatri","Skema 6.12: Art 4.6 Betalinger til staten",null,null,null,null,0,""]
["Ikke fordelte udgifter i Region Nord, psykiatri","Skema 6.13: Art 4.7 Betalinger til kommuner",null,null,null,null,0,""]
["Ikke fordelte udgifter i Region Nord, psykiatri","Skema 6.14: Art 4.8 Betalinger til andre regioner",null,null,null,null,0,""]
["Ikke fordelte udgifter i Region Nord, psykiatri","Skema 6.15: Art 7.6 Betalinger fra staten",null,null,null,null,0,""]
["Ikke fordelte udgifter i Region Nord, psykiatri","Skema 6.16: Art 7.7 Betalinger fra kommuner",null,null,null,null,0,""]
["Ikke fordelte udgifter i Region Nord, psykiatri","Skema 6.17: Art 7.8 Betalinger fra andre regioner",null,null,null,null,0,""]
["Ikke fordelte udgifter i Region Nord, psykiatri","Skema 6.18: Betalinger til selvejende, private og udenlandske sygehuse",null,null,null,null,0,""]
["Ikke fordelte udgifter i Region Nord, psykiatri","Skema 6.19: Dækningsafgift/ejendomsskat",null,null,null,null,0,""]
["Ikke fordelte udgifter i Region Nord, psykiatri","Skema 6.20: Forsikringer/erstatninger",null,null,null,null,0,""]
["Ikke fordelte udgifter i Region Nord, psykiatri","Skema 6.21: Vederlagsfri Lab. –ydelser og andre ydelser til praksissektoren",null,null,null,null,0,""]
["Ikke fordelte udgifter i Region Nord, psykiatri","Skema 6.22: Patienttransport",null,null,null,null,0,""]
["Ikke fordelte udgifter i Region Nord, psykiatri","Skema 6.23: Serviceydelser til/fra andre institutioner eller sygehuse udenfor regionen",null,null,null,null,0,""]
["Ikke fordelte udgifter i Region Nord, psykiatri","Skema 6.24: Udgifter til eksternt finansierede forskning",null,null,null,null,0,""]
["Ikke fordelte udgifter i Region Nord, psykiatri","Skema 6.25: Forebyggelse rettet mod praksissektoren og kommuner",null,null,null,null,0,""]
["Ikke fordelte udgifter i Region Nord, psykiatri","Skema 6.26: Praksisreservelæger",null,null,null,null,0,""]
["Ikke fordelte udgifter i Region Nord, psykiatri","Skema 6.27: Præhospital",null,null,null,null,0,""]
["Ikke fordelte udgifter i Region Nord, psykiatri","Skema 6.28: Udgifter til Danske Regioner (Kontigent, MedCom, Fællesproj.)",null,null,null,null,0,""]
["Ikke fordelte udgifter i Region Nord, psykiatri","Skema 6.29: Hospice",null,null,null,null,{"$f":"IF(ISERROR(C135- D135)=TRUE,\"\",C135 - D135)","v":0},{"$f":"IF(ISERROR((((C135- D135)/D135)*100)=TRUE),\"\",IF((((C135- D135)/D135)*100)<-7,FIXED(((C135- D135)/D135)*100, 1,TRUE) &\"%\" & \"▼\",IF((((C135- D135)/D135)*100)>7,FIXED(((C135- D135)/D135)*100, 1,TRUE) &\"%\" &\"▲\",FIXED(((C135- D135)/D135)*100, 1,TRUE)&\"%\")))","v":""}]
["Ikke fordelte udgifter i Region Nord, psykiatri","Skema 6.30: Konsulenter(Praksis)",null,null,null,null,0,""]
["Ikke fordelte udgifter i Region Nord, psykiatri","Skema 6.31: Videnskabsetisk Komité",null,null,null,null,0,""]
["Ikke fordelte udgifter i Region Nord, psykiatri","Skema 6.32: Tolkebistand",null,null,null,null,0,""]
["Ikke fordelte udgifter i Region Nord, psykiatri","Skema 6.33: Dansk Center for Partikelterapi",null,null,null,null,0,""]
["Ikke fordelte udgifter i Region Nord, psykiatri","Skema 6.34: Politisk organisation – overførte udgifter fra funktion 4.10.01, 4.10.02 og 4.10.04",null,null,null,null,0,""]
["Ikke fordelte udgifter i Region Nord, psykiatri","Skema 6.35: Øvrige udgifter, Region Sjælland",null,null,null,null,0,""]
["Ikke fordelte udgifter i Region Nord, psykiatri","Skema 6.36: Sundhedsydelser ifm. specialsektor",null,null,null,null,0,""]
["Ikke fordelte udgifter i Region Nord, psykiatri","Skema 6.37: Udgifter til primær sundhed fra skema 2",null,null,null,null,0,""]
["Ikke fordelte udgifter i Region Nord, psykiatri","Skema 6.38: Udgifter til primær sundhed fra skema 3",null,null,null,null,0,""]
["Ikke fordelte udgifter i Region Nord, psykiatri","Skema 6.39: Særlige udgifter ifm. COVID-19",null,null,null,null,0,""]
["Ikke fordelte udgifter i Region Nord, psykiatri","Skema 6.40: Udleveret udstyr/tilbehør ifm. cochlear implantater",null,null,null,null,0,""]
["Ikke fordelte udgifter i Region Nord, psykiatri","Skema 6.41: Luxturna-behandling, Rigshospitalet",null,null,null,null,0,""]
["Ikke fordelte udgifter i Region Nord, psykiatri","Skema 6.42: Udleveret medicin",null,null,null,null,0,""]
["Ikke fordelte udgifter i Region Nord, psykiatri","Skema 6.43: Udgifter ifm. sundhedsklynger",null,null,null,null,0,""]
["Ikke fordelte udgifter i Region Nord, psykiatri","Skema 6.44: Ukrainske patienter under særlov eller asyl",null,null,null,null,0,""]
["Ikke fordelte udgifter i Region Nord, psykiatri","Skema 6.45: Udgifter ifm. de særlige pladser i psykiatrien",null,null,null,null,0,""]
["Ikke fordelte udgifter i Region Nord, psykiatri","Skema 6.46: Sikringsafdelingen, Region Sjælland",null,null,null,null,0,""]
["Ikke fordelte udgifter i Region Nord, psykiatri","Skema 6.47: Øvrige (Kan kun benyttes efter aftale med Sundhedsdatastyrelsen)",null,null,null,null,0,""]
["Ikke fordelte udgifter i Region Nord, psykiatri","Lukkede poster (må kun bruges af Sundhedsdatastyrelsen)",null,null,null,null,0,""]
["Ikke fordelte udgifter i Region Nord, psykiatri","I alt",{"$f":"SUMIFS((C7:C154),(A7:A154),A155)","v":0},{"$f":"SUMIFS((D7:D154),(A7:A154),A155)","v":0},{"$f":"SUMIFS((E7:E154),(A7:A154),A155)","v":0},{"$f":"SUMIFS((F7:F154),(A7:A154),A155)","v":0},0,""]

{"sheet":"Skema 7","index":6,"n_rows":12,"n_cols":13,"rows_kept":12,"cut":false,"hidden":false,"merged":[[4,1,4,2],[1,1,2,8],[4,4,4,5],[4,7,4,8],[4,10,4,11]]}
["Region Nordjylland, psykiatriske sygehuse."]
[null,"Skema 7: Vederlagsfrie ydelser mellem sygehusene. (1.000 kr.)"]
[]
[]
["Sygehus",2023,null,2023,2022,null,2022,2021,null,2021,2020,null,2020]
[null,"Leverede","Modtagne","Lev. - Mod.","Leverede","Modtagne","Lev. - Mod.","Leverede","Modtagne","Lev. - Mod.","Leverede","Modtagne","Lev. - Mod."]
["Region Nordjylland, Voksen psykiatrien",null,17511.199000000001,{"$f":"$B$7-$C$7","v":-17511.199000000001},null,18754.167000000001,{"$f":"$E$7-$F$7","v":-18754.167000000001},null,16469.986000000001,{"$f":"$H$7-$I$7","v":-16469.986000000001},null,1670.701,{"$f":"$K$7-$L$7","v":-1670.701}]
["Region Nordjylland, Børn og unge psykiatrien,",null,5335.4110000000001,{"$f":"$B$8-$C$8","v":-5335.4110000000001},null,3747.279,{"$f":"$E$8-$F$8","v":-3747.279},null,4039.424,{"$f":"$H$8-$I$8","v":-4039.424},null,192.28899999999999,{"$f":"$K$8-$L$8","v":-192.28899999999999}]
["Ikke fordelte udgifter i Region Nordjylland. psykiatri",null,null,{"$f":"$B$9-$C$9","v":0},null,null,{"$f":"$E$9-$F$9","v":0},null,null,{"$f":"$H$9-$I$9","v":0},null,null,{"$f":"$K$9-$L$9","v":0}]
["I alt",{"$f":"SUM(B7:B9)","v":0},{"$f":"SUM(C7:C9)","v":22846.61},{"$f":"SUM(D7:D9)","v":-22846.61},{"$f":"SUM(E7:E9)","v":0},22501.446,-22501.446,0,20509.41,-20509.41,{"$f":"SUM(K7:K9)","v":0},1862.99,-1862.99]
[]
["NB: Afstem med somatikken"]

{"sheet":"Rapport","index":7,"n_rows":99,"n_cols":6,"rows_kept":99,"cut":false,"hidden":false,"merged":[]}
[]
[null,"Skema 1: Udgifter og indtægter på sygehusene/enhederne, eksklusiv omkostningssted 0001, Fælleskonto. (1.000 kr.)"]
[null,null,2023,2022,2021,2020]
[null,"Hovedart 1: Lønninger",0,699359.38399999996,673475.19500000007,653342.66300000006]
[null,"Hovedart 2: Varekøb",0,22402.111000000001,22294.668999999998,35654.917999999998]
[null,"Hovedart 4: Tjenesteydelser m.v. ",0,117396.986,103750.85399999999,109181.143]
[null,"Hovedart 5: Tilskud og overførsler",0,0,0,0]
[null,"Hovedart 6: Finansudgifter",0,0,0,0]
[null,"Hovedart 7: Indtægter",0,-27126.545999999998,-29173.420000000002,-33870.523000000001]
[null,"Hovedart 8: Finansindtægter",0,0,0,0]
[null,"Hovedart 9: Interne udgifter og indtægter",0,13394.276000000002,19915.118999999999,8705.3179999999993]
[null,"I alt",0,825426.21100000001,790262.41700000013,773013.51899999997]
[]
[null,"Skema 2: Fællesudgifter og -indtægter vedrørende sygehusene.\n(1.000 kr.)"]
[null,null,2023,2022,2021,2020]
[null,"Hovedart 1: Lønninger",0,21185.855,20216.59,19117.127]
[null,"Hovedart 2: Varekøb",0,3760.402,9762.2160000000003,9803.098]
[null,"Hovedart 4: Tjenesteydelser m.v. ",0,35921.826000000001,29279.093000000001,23880.870999999999]
[null,"Hovedart 5: Tilskud og overførsler",0,0,0,0]
[null,"Hovedart 6: Finansudgifter",0,0,0,0]
[null,"Hovedart 7: Indtægter",0,-771.01200000000006,-807.88100000000009,-915.36]
[null,"Hovedart 8: Finansindtægter",0,0,0,0]
[null,"Hovedart 9: Interne udgifter og indtægter",0,-8246.0590000000011,-7490.75,-6616.9260000000004]
[null,"I alt",0,51851.011999999988,50959.267999999996,45268.80999999999]
[]
[null,"Skema 3:Regionale fællesudgifter og -indtægter. (1.000 kr.)"]
[null,null,2023,2022,2021,2020]
[null,"1.70.50: Andel af fællesudgifter",0,28925.444000000003,27657.277999999998,26089.964]
[null,"1.60.40: Andel af central administration af sundhed (til og med 2019)",0,0,0,0]
[null,"1.60.41: Andel af øvrige udgifter og indtægter",0,401.01500000000004,364.209,503.471]
[null,"1.50.33: Andel af central administration af sundhed (ekskl. psykiatri)",0,0,0,0]
[null,"1.50.35: Administration af det psykiatriske område (kun central del)",0,4205.0860000000002,4332.4349999999995,3936.7040000000002]
[null,"I alt",0,33531.545000000006,32353.921999999999,30530.139000000003]
[]
[null,"Skema 4: Udgifter og indtægter til og fra psykiatriske afdelinger konteret på somatiske sygehuse. (1.000 kr.)"]
[null,null,2023,2022,2021,2020]
[null,"Korrektion",0,0,0,0]
[null,"Lønudg. på psyk. afd.,somatiske sygehuse",0,0,0,0]
[null,"Øvrige udg. til psyk. afd.,somatiske sygehuse",0,0,0,0]
[null,"I alt",0,0,0,0]
[]
[null,"Skema 5: Leasing- og huslejeudgifter. (1.000 kr.)"]
[null,null,2023,2022,2021,2020]
[null,"Andre udgifter",0,0,0,0]
[null,"Leasing- og lejeudgifter",0,1223.8629999999998,1309.4639999999999,941.57600000000002]
[null,"Huslejeudgifter",0,2185.5650000000001,2070.364,2048.9319999999998]
[null,"I alt",0,3409.4279999999999,3379.8279999999995,2990.5080000000003]
[]
[null,"Skema 6: Udgifter til andet end patientbehandling. (1.000 kr.)"]
[null,null,2023,2022,2021,2020]
[null,"Skema 6.1: Center for voldsramte (Bispebjerg)",0,0,0,0]
[null,"Skema 6.2: Ventilatørbistand i hjemmet, respiratorpatienter",0,0,0,0]
[null,"Skema 6.3: Blodprøvetagning i eget hjem",0,0,0,0]
[null,"Skema 6.4: Psykinfo + pårørende",0,4399.1949999999997,5047.2560000000003,4827.7129999999997]
[null,"Skema 6.5: Leveret udstyr til patienter i eget hjem, ilt og sonderemedier",0,0,0,0]
[null,"Skema 6.6: Montebello (Nordsjællands Hospitaler)",0,0,0,0]
[null,"Skema 6.7: Satspulje korrektioner mellem år",0,0,0,0]
[null,"Skema 6.8: Klinisk farmakologisk rådgivning af praksissektoren",0,0,0,0]
[null,"Skema 6.9: Tandregulering ifm. operation",0,0,0,0]
[null,"Skema 6.10: Giftlinjen",0,0,0,0]
[null,"Skema 6.11: Tjenestemandspensioner",0,0,0,0]
[null,"Skema 6.12: Art 4.6 Betalinger til staten",0,0,0,0]
[null,"Skema 6.13: Art 4.7 Betalinger til kommuner",0,0,0,0]
[null,"Skema 6.14: Art 4.8 Betalinger til andre regioner",0,28664.295999999998,24663.807999999997,23987.884999999998]
[null,"Skema 6.15: Art 7.6 Betalinger fra staten",0,0,0,0]
[null,"Skema 6.16: Art 7.7 Betalinger fra kommuner",0,-16151.235000000001,-16308.424000000001,0]
[null,"Skema 6.17: Art 7.8 Betalinger fra andre regioner",0,0,0,0]
[null,"Skema 6.18: Betalinger til selvejende, private og udenlandske sygehuse",0,0.47000000000000003,2717.0569999999998,2468.598]
[null,"Skema 6.19: Dækningsafgift/ejendomsskat",0,3093.4809999999998,3030.3609999999999,2968.6890000000003]
[null,"Skema 6.20: Forsikringer/erstatninger",0,0,0,0]
[null,"Skema 6.21: Vederlagsfri Lab. –ydelser og andre ydelser til praksissektoren",0,0,0,0]
[null,"Skema 6.22: Patienttransport",0,4108.951,3619.2829999999999,3612.9410000000003]
[null,"Skema 6.23: Serviceydelser til/fra andre institutioner eller sygehuse udenfor regionen",0,0,0,0]
[null,"Skema 6.24: Udgifter til eksternt finansierede forskning",0,0,0,0]
[null,"Skema 6.25: Forebyggelse rettet mod praksissektoren og kommuner",0,0,0,0]
[null,"Skema 6.26: Praksisreservelæger",0,0,0,0]
[null,"Skema 6.27: Præhospital",0,0,0,0]
[null,"Skema 6.28: Udgifter til Danske Regioner (Kontigent, MedCom, Fællesproj.)",0,0,0,0]
[null,"Skema 6.29: Hospice",0,0,0,0]
[null,"Skema 6.30: Konsulenter(Praksis)",0,0,0,0]
[null,"Skema 6.31: Videnskabsetisk Komité",0,0,0,0]
[null,"Skema 6.32: Tolkebistand",0,172.86799999999999,176.43600000000001,271.483]
[null,"Skema 6.33: Dansk Center for Partikelterapi",0,0,0,0]
[null,"Skema 6.34: Politisk organisation – overførte udgifter fra funktion 4.10.01, 4.10.02 og 4.10.04",0,0,0,0]
[null,"Skema 6.35: Øvrige udgifter, Region Sjælland",0,0,0,0]
[null,"Skema 6.36: Sundhedsydelser ifm. specialsektor",0,0,0,0]
[null,"Skema 6.37: Udgifter til primær sundhed fra skema 2",0,0,0,0]
[null,"Skema 6.38: Udgifter til primær sundhed fra skema 3",0,0,0,0]
[null,"Skema 6.39: Særlige udgifter ifm. COVID-19",0,683.06799999999998,1328.0269999999998,996.02499999999998]
[null,"Skema 6.40: Udleveret udstyr/tilbehør ifm. cochlear implantater",0,0,0,0]
[null,"Skema 6.41: Luxturna-behandling, Rigshospitalet",0,0,0,0]
[null,"Skema 6.42: Udleveret medicin",0,0,0,0]
[null,"Skema 6.43: Udgifter ifm. sundhedsklynger",0,0,0,0]
[null,"Skema 6.44: Ukrainske patienter under særlov eller asyl",0,0,0,0]
[null,"Skema 6.45: Udgifter ifm. de særlige pladser i psykiatrien",0,0,0,0]
[null,"Skema 6.46: Sikringsafdelingen, Region Sjælland",0,0,0,0]
[null,"Skema 6.47: Øvrige (Kan kun benyttes efter aftale med Sundhedsdatastyrelsen)",0,0,0,0]
[null,"Lukkede poster (må kun bruges af Sundhedsdatastyrelsen)",0,0,0,0]
[null,"I alt",0,24971.093999999997,24273.804,39133.334000000003]

{"sheet":"Rapport SGH","index":8,"n_rows":9,"n_cols":9,"rows_kept":9,"cut":false,"hidden":false,"merged":[]}
[2023,"Skema 1","Skema 2","Skema 3","Skema 4","Skema 5","Skema 6","Skema 7","I alt"]
["Region Nord, Voksen psykiatrien",0,0,0,0,0,0,0,{"$f":"(SUM(B2:D2))-(SUM(E2:H2))","v":0}]
["Region Nord,Børn-unge psykiatrien",0,0,0,0,0,0,0,{"$f":"(SUM(B3:D3))-(SUM(E3:H3))","v":0}]
["Ikke fordelte udgifter i Region Nord, psykiatri",0,0,0,0,0,0,0,0]
[]
[2022]
["Region Nord, Voksen psykiatrien",704853.80500000005,43342.461999999992,27947.368000000002,0,2841.6419999999998,11175.645999999999,-18754.167000000001,{"$f":"(SUM(B7:D7))-(SUM(E7:H7))","v":780880.51399999997}]
["Region Nord,Børn-unge psykiatrien",120572.406,8508.5499999999993,5584.1770000000006,0,567.78600000000006,13795.448,-3747.279,{"$f":"(SUM(B8:D8))-(SUM(E8:H8))","v":124049.178}]
["Ikke fordelte udgifter i Region Nord, psykiatri",0,0,0,0,0,0,0,0]

{"sheet":"Afstemning af ikke fordelte","index":9,"n_rows":9,"n_cols":2,"rows_kept":9,"cut":false,"hidden":false,"merged":[]}
["Afstemning af Ikke fordelte indtægter- og udgifter"]
["1.000 kr.","2023"]
["Skema 1",0]
["Skema 2",0]
["Skema 3",0]
["Skema 4",0]
["Skema 5",0]
["Skema 6",0]
["1+2+3-4-5-6",{"$f":"+B3+B4+B5-B6-B7-B8","v":0}]